fUSD/lending_fUSD_20250926
["ID","MTS","AMOUNT","RATE_DAILY","PERIOD"]
[387844050,1758919850082,-308.86993531,0.0002,2]
[387844051,1758919851266,-4159.4818044,0.0002,2]
[387844052,1758919851518,-4232.0,0.0002,2]
[387844053,1758919851527,-67082.84945727,0.0002,2]
[387844056,1758920106712,486.1344,0.0001847,2]
[387844058,1758920133777,150.0,0.00018407,7]
[387844068,1758920577654,186.09,0.0001851,2]
[387844071,1758920707227,250.0,0.0001834,2]
[387844072,1758920707303,150.0,0.00018,2]
[387844075,1758920808530,298.25,0.00018119,2]
[387844134,1758920975838,155.171573,0.00018156,2]
[387844135,1758920976179,155.171573,0.00017857,2]
[387844136,1758920981979,167.322295,0.00018156,2]
[387844186,1758921032845,-300.0,0.00018558,2]
[387844187,1758921032855,-215.15615642,0.00018558,2]
[387844188,1758921032876,-84.84384358,0.00018558,2]
[387844189,1758921032885,-172.62673366,0.00018558,2]
[387844190,1758921032897,-1827.37326634,0.00018558,2]
[387844191,1758921032906,-195.0,0.00018559,2]
[387844192,1758921032915,-408.97748138,0.00018559,2]
[387844193,1758921032926,-724.74982311,0.00018559,2]
[387844194,1758921032936,-297.46332274,0.00018559,2]
[387844195,1758921033300,-202.53667726,0.00018559,2]
[387844196,1758921033310,-500.0,0.00018559,2]
[387844197,1758921033320,-500.0,0.00018559,2]
[387844198,1758921033330,-500.0,0.00018559,2]
[387844199,1758921033340,-500.0,0.00018559,2]
[387844200,1758921033350,-500.0,0.00018559,2]
[387844201,1758921033360,-500.0,0.00018559,2]
[387844202,1758921033369,-500.0,0.00018559,2]
[387844203,1758921033379,-500.0,0.00018559,2]
[387844204,1758921033389,-380.27244496,0.00018559,2]
[387844205,1758921033398,-500.0,0.00018559,2]
[387844206,1758921033407,-500.0,0.00018559,2]
[387844207,1758921033417,-284.83015484,0.00018559,2]
[387844208,1758921033514,-215.16984516,0.00018559,2]
[387844209,1758921033524,-500.0,0.00018559,2]
[387844210,1758921033533,-500.0,0.00018559,2]
[387844211,1758921033543,-500.0,0.00018559,2]
[387844212,1758921033553,-500.0,0.00018559,2]
[387844213,1758921033562,-500.0,0.00018559,2]
[387844214,1758921033573,-500.0,0.00018559,2]
[387844215,1758921033582,-500.0,0.00018559,2]
[387844216,1758921033592,-500.0,0.00018559,2]
[387844217,1758921033603,-500.0,0.00018559,2]
[387844218,1758921033613,-500.0,0.00018559,2]
[387844219,1758921033623,-500.0,0.00018559,2]
[387844220,1758921033633,-500.0,0.00018559,2]
[387844221,1758921033643,-500.0,0.00018559,2]
[387844222,1758921033653,-500.0,0.00018559,2]
[387844223,1758921033663,-500.0,0.00018559,2]
[387844224,1758921033672,-500.0,0.00018559,2]
[387844225,1758921033682,-500.0,0.00018559,2]
[387844226,1758921033691,-500.0,0.00018559,2]
[387844227,1758921033701,-388.0272445,0.00018559,2]
[387844228,1758921033711,-150.0,0.0001856,2]
[387844229,1758921033720,-195.0,0.0001856,2]
[387844230,1758921033729,-213.30021218,0.0001856,2]
[387844231,1758921033739,-300.0,0.00018561,2]
[387844232,1758921033749,-300.0,0.00018562,2]
[387844233,1758921033760,-300.0,0.00018562,2]
[387844234,1758921033770,-300.0,0.00018562,2]
[387844235,1758921033780,-9999.99,0.00018562,2]
[387844236,1758921033790,-477.61893465,0.00018563,2]
[387844237,1758921033800,-449.93749004,0.000186,2]
[387844238,1758921033810,-153.018509,0.00018647,2]
[387844239,1758921033821,-1000.0,0.000188,2]
[387844240,1758921033830,-151.0,0.00018889,2]
[387844241,1758921033840,-151.0,0.00018889,2]
[387844242,1758921033850,-151.0,0.00018889,2]
[387844243,1758921033860,-151.0,0.00018889,2]
[387844244,1758921033870,-151.0,0.00018889,2]
[387844245,1758921033880,-151.0,0.00018889,2]
[387844246,1758921033889,-151.0,0.00018889,2]
[387844247,1758921033899,-151.0,0.00018889,2]
[387844248,1758921033908,-500.0,0.00018889,2]
[387844249,1758921033918,-151.0,0.00018889,2]
[387844250,1758921033928,-500.0,0.00018889,2]
[387844251,1758921033938,-151.0,0.00018889,2]
[387844252,1758921033948,-500.0,0.00018889,2]
[387844253,1758921033957,-151.0,0.00018889,2]
[387844254,1758921033967,-151.0,0.00018889,2]
[387844255,1758921033976,-533.84080379,0.00018889,2]
[387844256,1758921033986,-155.2589367,0.00018889,2]
[387844257,1758921033995,-151.0,0.00018889,2]
[387844258,1758921034006,-151.0,0.00018889,2]
[387844259,1758921034016,-151.0,0.00018889,2]
[387844260,1758921034027,-151.0,0.00018889,2]
[387844261,1758921034038,-151.0,0.00018889,2]
[387844262,1758921034048,-151.0,0.00018889,2]
[387844263,1758921034059,-151.0,0.00018889,2]
[387844264,1758921034068,-151.0,0.00018889,2]
[387844265,1758921034079,-151.0,0.00018889,2]
[387844266,1758921034089,-151.0,0.00018889,2]
[387844267,1758921034100,-500.0,0.00018889,2]
[387844268,1758921034110,-151.0,0.00018889,2]
[387844269,1758921034119,-151.0,0.00018889,2]
[387844270,1758921034129,-151.0,0.00018889,2]
[387844271,1758921034138,-151.0,0.00018889,2]
[387844272,1758921034148,-151.0,0.00018889,2]
[387844273,1758921034157,-151.0,0.00018889,2]
[387844274,1758921034167,-151.0,0.00018889,2]
[387844275,1758921034176,-151.0,0.00018889,2]
[387844276,1758921034186,-151.0,0.00018889,2]
[387844277,1758921034195,-151.0,0.00018889,2]
[387844278,1758921034205,-214.71605563,0.00018889,2]
[387844279,1758921034215,-167.322295,0.00018896,2]
[387844280,1758921034225,-2860.72092417,0.00018898,2]
[387844281,1758921034235,-296.2439785,0.00018899,2]
[387844282,1758921034244,-790.95816844,0.000189,2]
[387844283,1758921034404,-281.751,0.000189,2]
[387844284,1758921034493,-2067.74969496,0.000189,2]
[387844285,1758921034504,-6672.75567608,0.000189,2]
[387844286,1758921034595,-172724.94546052,0.000189,2]
[387844287,1758921034605,-1000.0,0.00018997,2]
[387844288,1758921034615,-1000.0,0.00018997,2]
[387844289,1758921034624,-1000.0,0.00018997,2]
[387844290,1758921034633,-1000.0,0.00018997,2]
[387844291,1758921034643,-1000.0,0.00018997,2]
[387844292,1758921034653,-1000.0,0.00018997,2]
[387844293,1758921034662,-1000.0,0.00018997,2]
[387844294,1758921034672,-1000.0,0.00018997,2]
[387844295,1758921034682,-162.44547553,0.00018997,2]
[387844296,1758921034691,-1000.0,0.00018997,2]
[387844297,1758921034701,-434.6127756,0.00018997,2]
[387844298,1758921034711,-201.93286099,0.00018997,2]
[387844299,1758921034720,-1000.0,0.00018997,2]
[387844300,1758921034730,-1000.0,0.00018997,2]
[387844301,1758921034740,-322.6107,0.00018997,2]
[387844302,1758921034750,-267.46074303,0.00018997,2]
[387844303,1758921034759,-2860.72092409,0.00019009,2]
[387844304,1758921034769,-1382.33,0.00019111,2]
[387844305,1758921034779,-2860.72092409,0.00019121,2]
[387844306,1758921034788,-2860.72092409,0.00019232,2]
[387844307,1758921034798,-311.50622713,0.00019343,2]
[387844308,1758921034810,-2549.21469696,0.00019343,2]
[387844309,1758921034819,-300.0,0.000194,7]
[387844310,1758921034831,-2860.72092409,0.00019455,2]
[387844311,1758921034841,-170.34,0.00019481,2]
[387844312,1758921034851,-600.0,0.000195,7]
[387844313,1758921034861,-2860.72092409,0.00019566,2]
[387844314,1758921034871,-900.0,0.000196,7]
[387844315,1758921034880,-347.0,0.00019632,2]
[387844316,1758921034889,-2860.72092409,0.00019677,2]
[387844317,1758921034899,-2000.0,0.000197,2]
[387844318,1758921034908,-1200.0,0.000197,7]
[387844319,1758921034918,-158.24451721,0.00019751,2]
[387844320,1758921034928,-2860.72092409,0.00019789,2]
[387844321,1758921034939,-562.02623,0.000198,2]
[387844322,1758921034948,-1500.0,0.000198,7]
[387844323,1758921034958,-1000.0,0.0001983,2]
[387844324,1758921034968,-200.0,0.0001984,2]
[387844325,1758921034978,-150.11453784,0.0001985,2]
[387844326,1758921034987,-1425.0,0.00019851,2]
[387844327,1758921034998,-899.0,0.00019851,2]
[387844328,1758921035007,-1179.0,0.00019851,2]
[387844329,1758921035016,-252.10819471,0.00019851,2]
[387844427,1758921042200,-173.13,0.0001889,2]
[387844428,1758921042210,-173.13,0.00019333,2]
[387844429,1758921042219,-173.13,0.00019841,2]
[387844430,1758921042229,-1847.44418509,0.00019851,2]
[387844431,1758921042286,-1641.75696,0.00019851,2]
[387844432,1758921042298,-689.79885491,0.00019851,2]
[387844433,1758921042307,-222.77532483,0.00019851,2]
[387844434,1758921042318,-938.79299956,0.00019851,2]
[387844443,1758921043828,-1488.68355577,0.00019851,2]
[387844444,1758921044097,-2912.01296702,0.00019851,2]
[387844445,1758921044346,-665.73515282,0.00019851,2]
[387844446,1758921044356,-1508.56484718,0.00019851,2]
[387844447,1758921044367,-433.25352795,0.00019851,2]
[387844448,1758921044379,-636.18000003,0.00019851,2]
[387844452,1758921047856,-603.0192,0.00019851,2]
[387844453,1758921047929,-15723.98242484,0.00019851,2]
[387844454,1758921047938,-728.0,0.00019851,2]
[387844455,1758921047948,-1000.0,0.00019856,2]
[387844456,1758921047957,-150.11453784,0.00019859,2]
[387844457,1758921047966,-160.94889144,0.00019859,2]
[387844458,1758921047976,-1052.045578,0.00019862,2]
[387844459,1758921047985,-1000.0,0.00019876,2]
[387844460,1758921047994,-160.94889144,0.0001988,2]
[387844461,1758921048189,-229.30189537,0.00019882,2]
[387844462,1758921048200,-1000.0,0.00019885,2]
[387844463,1758921048211,-173.19500664,0.00019886,2]
[387844464,1758921048223,-168.51703876,0.00019895,2]
[387844465,1758921048233,-463.19543896,0.00019895,2]
[387844466,1758921048244,-5000.0,0.00019895,2]
[387844467,1758921048255,-463.19543889,0.00019896,2]
[387844468,1758921048265,-463.19543889,0.00019896,2]
[387844469,1758921048275,-463.19543889,0.00019897,2]
[387844470,1758921048285,-463.19543889,0.00019897,2]
[387844471,1758921048296,-463.19543889,0.00019898,2]
[387844472,1758921048305,-463.19543889,0.00019898,2]
[387844473,1758921048315,-463.19543889,0.00019899,2]
[387844474,1758921048325,-463.19543889,0.00019899,2]
[387844475,1758921048337,-2860.72092409,0.000199,2]
[387844476,1758921048348,-186.42265192,0.000199,2]
[387844477,1758921048358,-300.0,0.000199,7]
[387844478,1758921048368,-463.19543889,0.000199,2]
[387844479,1758921048378,-181.09044594,0.000199,2]
[387844480,1758921048387,-789.43866815,0.000199,2]
[387844481,1758921048397,-761.5867282,0.000199,2]
[387844482,1758921048407,-1425.0,0.00019905,2]
[387844483,1758921048416,-229.30189537,0.00019911,2]
[387844484,1758921048426,-150.11453784,0.00019918,2]
[387844485,1758921048435,-229.30189537,0.00019919,2]
[387844486,1758921048445,-173.19500664,0.0001992,2]
[387844487,1758921048455,-229.30189537,0.00019921,2]
[387844488,1758921048464,-523.58833317,0.00019923,2]
[387844489,1758921048475,-173.19500664,0.00019926,2]
[387844490,1758921048484,-523.58833317,0.00019928,2]
[387844491,1758921048494,-160.94889144,0.00019934,2]
[387844492,1758921048504,-1052.045578,0.00019935,2]
[387844493,1758921048514,-1052.045578,0.00019936,2]
[387844494,1758921048523,-229.30189537,0.00019937,2]
[387844495,1758921048533,-150.11453784,0.00019937,2]
[387844496,1758921048543,-215.95330899,0.00019939,2]
[387844497,1758921048553,-160.94889144,0.00019939,2]
[387844498,1758921048563,-523.58833317,0.00019941,2]
[387844499,1758921048572,-945.99,0.00019942,2]
[387844500,1758921048582,-160.94889144,0.00019943,2]
[387844501,1758921048593,-150.11453784,0.00019956,2]
[387844502,1758921048603,-523.58833317,0.00019957,2]
[387844503,1758921048612,-229.30189537,0.00019958,2]
[387844504,1758921048622,-173.19500664,0.00019958,2]
[387844505,1758921048633,-150.11453784,0.00019964,2]
[387844506,1758921048642,-1052.045578,0.00019964,2]
[387844507,1758921048652,-160.94889144,0.00019965,2]
[387844508,1758921048662,-500.0,0.00019973,2]
[387844509,1758921048671,-1052.045578,0.00019974,2]
[387844510,1758921048681,-173.19500664,0.00019975,2]
[387844511,1758921048691,-173.19500664,0.00019975,2]
[387844512,1758921048700,-523.58833317,0.00019979,2]
[387844513,1758921048710,-229.30189537,0.0001998,2]
[387844514,1758921048719,-173.19500664,0.00019981,2]
[387844515,1758921048728,-173.13,0.00019985,2]
[387844516,1758921048737,-173.13,0.00019985,2]
[387844517,1758921048747,-1052.045578,0.00019985,2]
[387844518,1758921048756,-523.58833317,0.0001999,2]
[387844519,1758921048766,-1052.045578,0.0001999,2]
[387844520,1758921048775,-160.94889144,0.00019993,2]
[387844521,1758921048785,-150.0,0.00019993,2]
[387844522,1758921048795,-150.11453784,0.00019993,2]
[387844523,1758921048804,-1243.25642692,0.00019994,5]
[387844524,1758921048814,-523.58833317,0.00019994,2]
[387844525,1758921048824,-1404.2603096,0.00019995,2]
[387844526,1758921048834,-1496.5740808,0.00019995,2]
[387844527,1758921048844,-3391.6843409,0.00019995,2]
[387844528,1758921048854,-127361.4379427,0.00019995,2]
[387844529,1758921048863,-30500.9665362,0.00019995,2]
[387844530,1758921048872,-427187.72756518,0.00019995,2]
[387844531,1758921048882,-167.8364596,0.00019995,2]
[387844532,1758921048891,-151.0,0.00019995,2]
[387844533,1758921048900,-151.0,0.00019995,2]
[387844534,1758921048910,-151.0,0.00019995,2]
[387844535,1758921048919,-151.0,0.00019995,2]
[387844536,1758921048929,-277.00424871,0.00019995,2]
[387844537,1758921048938,-151.0,0.00019995,2]
[387844538,1758921048947,-151.0,0.00019995,2]
[387844539,1758921048957,-294.204546,0.00019995,2]
[387844540,1758921048966,-278.341197,0.00019995,2]
[387844541,1758921048980,-954.189503,0.00019995,2]
[387844542,1758921049001,-278.341197,0.00019995,2]
[387844543,1758921049013,-151.0,0.00019995,2]
[387844544,1758921049022,-954.189503,0.00019995,2]
[387844545,1758921049037,-278.341197,0.00019995,2]
[387844546,1758921049047,-278.341197,0.00019995,2]
[387844547,1758921049057,-151.0,0.00019995,2]
[387844548,1758921049067,-151.0,0.00019995,2]
[387844549,1758921049078,-197.832936,0.00019995,2]
[387844550,1758921049089,-174.473683,0.00019995,2]
[387844551,1758921049099,-151.0,0.00019995,2]
[387844552,1758921049111,-151.0,0.00019995,2]
[387844553,1758921049121,-151.0,0.00019995,2]
[387844554,1758921049131,-151.0,0.00019995,2]
[387844555,1758921049140,-151.0,0.00019995,2]
[387844556,1758921049150,-171.167975,0.00019995,2]
[387844557,1758921049160,-151.0,0.00019995,2]
[387844558,1758921049169,-171.167975,0.00019995,2]
[387844559,1758921049179,-151.0,0.00019995,2]
[387844560,1758921049189,-171.167975,0.00019995,2]
[387844561,1758921049199,-151.0,0.00019995,2]
[387844562,1758921049210,-165.755004,0.00019995,2]
[387844563,1758921049220,-171.167975,0.00019995,2]
[387844564,1758921049229,-165.755004,0.00019995,2]
[387844565,1758921049239,-165.755004,0.00019995,2]
[387844566,1758921049249,-151.0,0.00019995,2]
[387844567,1758921049259,-165.755004,0.00019995,2]
[387844568,1758921049268,-151.0,0.00019995,2]
[387844569,1758921049278,-249.771894,0.00019995,2]
[387844570,1758921049287,-249.771894,0.00019995,2]
[387844571,1758921049297,-249.771894,0.00019995,2]
[387844572,1758921049307,-158.038415,0.00019995,2]
[387844573,1758921049317,-249.771894,0.00019995,2]
[387844574,1758921049327,-158.038415,0.00019995,2]
[387844575,1758921049336,-158.038415,0.00019995,2]
[387844576,1758921049345,-151.0,0.00019995,2]
[387844577,1758921049355,-158.038415,0.00019995,2]
[387844578,1758921049364,-151.0,0.00019995,2]
[387844579,1758921049374,-151.0,0.00019995,2]
[387844580,1758921049383,-151.0,0.00019995,2]
[387844581,1758921049392,-152.706256,0.00019995,2]
[387844582,1758921049402,-151.0,0.00019995,2]
[387844583,1758921049413,-155.465883,0.00019995,2]
[387844584,1758921049425,-151.0,0.00019995,2]
[387844585,1758921049435,-151.0,0.00019995,2]
[387844586,1758921049445,-151.0,0.00019995,2]
[387844587,1758921049454,-151.0,0.00019995,2]
[387844588,1758921049464,-151.0,0.00019995,2]
[387844589,1758921049474,-151.0,0.00019995,2]
[387844590,1758921049483,-196.830133,0.00019995,2]
[387844591,1758921049492,-151.0,0.00019995,2]
[387844592,1758921049502,-151.0,0.00019995,2]
[387844593,1758921049511,-151.0,0.00019995,2]
[387844594,1758921049521,-290.53726,0.00019995,2]
[387844595,1758921049531,-151.0,0.00019995,2]
[387844596,1758921049539,-151.0,0.00019995,2]
[387844597,1758921049549,-151.0,0.00019995,2]
[387844598,1758921049558,-151.0,0.00019995,2]
[387844599,1758921049567,-151.0,0.00019995,2]
[387844600,1758921049577,-151.0,0.00019995,2]
[387844601,1758921049586,-151.0,0.00019995,2]
[387844602,1758921049596,-151.0,0.00019995,2]
[387844603,1758921049606,-151.0,0.00019995,2]
[387844604,1758921049615,-151.0,0.00019995,2]
[387844605,1758921049625,-151.0,0.00019995,2]
[387844606,1758921049634,-151.0,0.00019995,2]
[387844607,1758921049647,-151.0,0.00019995,2]
[387844608,1758921049656,-151.0,0.00019995,2]
[387844609,1758921049666,-173.935094,0.00019995,2]
[387844610,1758921049675,-151.0,0.00019995,2]
[387844611,1758921049685,-173.935094,0.00019995,2]
[387844612,1758921049695,-151.0,0.00019995,2]
[387844613,1758921049704,-151.0,0.00019995,2]
[387844614,1758921049714,-173.935094,0.00019995,2]
[387844615,1758921049724,-173.935094,0.00019995,2]
[387844616,1758921049733,-154.068947,0.00019995,2]
[387844617,1758921049743,-151.0,0.00019995,2]
[387844618,1758921049752,-1712.2386831,0.00019995,2]
[387844619,1758921049762,-151.0,0.00019995,2]
[387844620,1758921049771,-151.0,0.00019995,2]
[387844621,1758921049781,-151.0,0.00019995,2]
[387844622,1758921049791,-209.076027,0.00019995,2]
[387844623,1758921049800,-151.0,0.00019995,2]
[387844624,1758921049810,-152.55777,0.00019995,2]
[387844625,1758921049820,-151.0,0.00019995,2]
[387844626,1758921049830,-151.0,0.00019995,2]
[387844627,1758921049839,-151.0,0.00019995,2]
[387844628,1758921049849,-151.0,0.00019995,2]
[387844629,1758921049859,-174.658913,0.00019995,2]
[387844630,1758921049869,-992.4222446,0.00019995,2]
[387844631,1758921049878,-174.658913,0.00019995,2]
[387844632,1758921049888,-174.658913,0.00019995,2]
[387844633,1758921049899,-174.658913,0.00019995,2]
[387844634,1758921049909,-151.0,0.00019995,2]
[387844635,1758921049920,-151.0,0.00019995,2]
[387844636,1758921049929,-151.0,0.00019995,2]
[387844637,1758921049939,-243.030383,0.00019995,2]
[387844638,1758921049948,-151.0,0.00019995,2]
[387844639,1758921049958,-151.0,0.00019995,2]
[387844640,1758921049967,-253.978023,0.00019995,2]
[387844641,1758921049977,-151.0,0.00019995,2]
[387844642,1758921049987,-152.296819,0.00019995,2]
[387844643,1758921049996,-151.0,0.00019995,2]
[387844644,1758921050006,-151.0,0.00019995,2]
[387844645,1758921050016,-241.986824,0.00019995,2]
[387844646,1758921050026,-151.0,0.00019995,2]
[387844647,1758921050041,-151.0,0.00019995,2]
[387844648,1758921050050,-151.0,0.00019995,2]
[387844649,1758921050060,-151.0,0.00019995,2]
[387844650,1758921050070,-151.0,0.00019995,2]
[387844651,1758921050081,-151.0,0.00019995,2]
[387844652,1758921050091,-151.0,0.00019995,2]
[387844653,1758921050101,-199.36506,0.00019995,2]
[387844654,1758921050111,-151.0,0.00019995,2]
[387844655,1758921050121,-151.0,0.00019995,2]
[387844656,1758921050131,-151.0,0.00019995,2]
[387844657,1758921050140,-198.45601604,0.00019995,2]
[387844658,1758921050150,-151.0,0.00019995,2]
[387844659,1758921050159,-151.0,0.00019995,2]
[387844660,1758921050169,-228.06366678,0.00019995,2]
[387844661,1758921050179,-151.0,0.00019995,2]
[387844662,1758921050188,-152.667509,0.00019995,2]
[387844663,1758921050198,-151.0,0.00019995,2]
[387844664,1758921050208,-151.0,0.00019995,2]
[387844665,1758921050218,-151.0,0.00019995,2]
[387844666,1758921050228,-151.0,0.00019995,2]
[387844667,1758921050237,-151.0,0.00019995,2]
[387844668,1758921050247,-151.0,0.00019995,2]
[387844669,1758921050256,-153.526499,0.00019995,2]
[387844670,1758921050266,-151.0,0.00019995,2]
[387844671,1758921050276,-236.494263,0.00019995,2]
[387844672,1758921050287,-151.0,0.00019995,2]
[387844673,1758921050296,-436.679537,0.00019995,2]
[387844674,1758921050306,-436.679537,0.00019995,2]
[387844675,1758921050316,-436.679537,0.00019995,2]
[387844676,1758921050325,-436.679537,0.00019995,2]
[387844677,1758921050334,-151.0,0.00019995,2]
[387844678,1758921050344,-1243.0675029,0.00019995,2]
[387844679,1758921050355,-151.0,0.00019995,2]
[387844680,1758921050364,-151.0,0.00019995,2]
[387844681,1758921050373,-151.0,0.00019995,2]
[387844682,1758921050383,-151.0,0.00019995,2]
[387844683,1758921050392,-151.0,0.00019995,2]
[387844684,1758921050402,-151.0,0.00019995,2]
[387844685,1758921050411,-151.0,0.00019995,2]
[387844686,1758921050420,-151.0,0.00019995,2]
[387844687,1758921050429,-151.0,0.00019995,2]
[387844688,1758921050439,-151.0,0.00019995,2]
[387844689,1758921050449,-151.0,0.00019995,2]
[387844690,1758921050459,-151.0,0.00019995,2]
[387844691,1758921050468,-426.984442,0.00019995,2]
[387844692,1758921050479,-151.0,0.00019995,2]
[387844693,1758921050490,-426.984442,0.00019995,2]
[387844694,1758921050499,-426.984442,0.00019995,2]
[387844695,1758921050509,-151.0,0.00019995,2]
[387844696,1758921050518,-426.984442,0.00019995,2]
[387844697,1758921050528,-151.0,0.00019995,2]
[387844698,1758921050537,-151.0,0.00019995,2]
[387844699,1758921050546,-453.918129,0.00019995,2]
[387844700,1758921050556,-151.0,0.00019995,2]
[387844701,1758921050565,-151.0,0.00019995,2]
[387844702,1758921050575,-453.918129,0.00019995,2]
[387844703,1758921050584,-151.0,0.00019995,2]
[387844704,1758921050594,-300.0,0.00019999,2]
[387844705,1758921050603,-500.0,0.00019999,2]
[387844706,1758921050614,-150.0,0.00019999,2]
[387844707,1758921050623,-150.0,0.00019999,2]
[387844708,1758921050632,-500.0,0.00019999,2]
[387844709,1758921050641,-500.0,0.00019999,2]
[387844710,1758921050651,-500.0,0.00019999,2]
[387844711,1758921050660,-5000.0,0.00019999,2]
[387844712,1758921050669,-500.0,0.00019999,2]
[387844713,1758921050678,-783.0,0.00019999,2]
[387844714,1758921050688,-500.0,0.00019999,2]
[387844715,1758921050697,-150.0,0.00019999,2]
[387844716,1758921050707,-150.0,0.00019999,2]
[387844717,1758921050716,-500.0,0.00019999,2]
[387844718,1758921050726,-150.0,0.00019999,2]
[387844719,1758921050737,-835.0,0.00019999,2]
[387844720,1758921050748,-500.0,0.00019999,2]
[387844721,1758921050757,-500.0,0.00019999,2]
[387844722,1758921050767,-150.0,0.00019999,2]
[387844723,1758921050776,-150.0,0.00019999,2]
[387844724,1758921050786,-150.0,0.00019999,2]
[387844725,1758921050796,-250.0,0.00019999,2]
[387844726,1758921050806,-500.0,0.00019999,2]
[387844727,1758921050815,-541.10707768,0.0002,2]
[387844728,1758921050825,-2168.88860635,0.0002,2]
[387844729,1758921050835,-82573.84912887,0.0002,2]
[387844730,1758921050845,-289.57,0.0002,2]
[387844731,1758921050855,-500.0,0.0002,2]
[387844732,1758921050864,-205786.92740644,0.0002,2]
[387844734,1758921054464,-151.0,0.00019995,2]
[387844735,1758921054473,-247.567678,0.00019995,2]
[387844736,1758921054483,-453.918129,0.00019995,2]
[387844737,1758921054492,-151.0,0.00019995,2]
[387844738,1758921054502,-151.0,0.00019995,2]
[387844739,1758921054512,-25272.732193,0.0002,2]
[387844740,1758921054524,-28950.35187335,0.0002,2]
[387844741,1758921057907,-547.36227033,0.00019851,2]
[387844742,1758921057919,-631.63772967,0.00019851,2]
[387844743,1758921057929,-247.567678,0.00019995,2]
[387844744,1758921057939,-453.918129,0.00019995,2]
[387844745,1758921057948,-201.936898,0.00019995,2]
[387844746,1758921057958,-3677.93956533,0.0002,2]
[387844747,1758921058140,-313.8242,0.0002,2]
[387844748,1758921058152,-354.70923108,0.0002,2]
[387844749,1758921058163,-6182.10233035,0.0002,2]
[387844750,1758921058198,-666.0,0.0002,2]
[387844751,1758921167306,-178.0,0.00018557,2]
[387844752,1758921169404,-106.0,0.00018557,2]
[387844753,1758921169430,-66.93458196,0.00018557,2]
[387844754,1758921172384,-221.49929832,0.00018557,2]
[387844755,1758921173334,-211.56611972,0.00018557,2]
[387844756,1758921173361,-500.0,0.00018557,2]
[387844757,1758921173391,-500.0,0.00018557,2]
[387844758,1758921173419,-500.0,0.00018557,2]
[387844759,1758921173445,-500.0,0.00018557,2]
[387844760,1758921173472,-500.0,0.00018557,2]
[387844761,1758921173498,-500.0,0.00018557,2]
[387844762,1758921173524,-500.0,0.00018557,2]
[387844763,1758921173549,-500.0,0.00018557,2]
[387844764,1758921173575,-500.0,0.00018557,2]
[387844765,1758921173601,-500.0,0.00018557,2]
[387844766,1758921173627,-500.0,0.00018557,2]
[387844767,1758921173653,-500.0,0.00018557,2]
[387844768,1758921173678,-416.16787902,0.00018557,2]
[387844769,1758921173706,-500.0,0.00018557,2]
[387844770,1758921173730,-195.0,0.00018558,2]
[387844771,1758921173754,-300.0,0.00019276,2]
[387844772,1758921173777,-300.0,0.00019708,2]
[387844773,1758921173802,-207.37078495,0.00019755,2]
[387844774,1758921173826,-80749.89521631,0.00019756,2]
[387844775,1758921200692,-209.32252144,0.00018557,2]
[387844777,1758921204560,-186.1127622,0.00018557,2]
[387844778,1758921206481,-104.56471636,0.00018557,2]
[387844779,1758921206504,-178.73724767,0.00018557,2]
[387844780,1758921207954,-289.2594641,0.00018557,2]
[387844781,1758921210080,-32.00328823,0.00018557,2]
[387844782,1758921210107,-273.60124782,0.00018557,2]